bitfinex/quotes_SOLUSD_20251031
["timestamp","ask_amount","ask_price","bid_price","bid_amount"]
[1761923867230,18.4322186,190.08,190.02,5.27984305]
[1761923867416,20.592,190.05,190.03,0.7]
[1761923867919,20.592,190.05,190.0,5.27984305]
[1761923868124,5.26205009,190.04,190.01,0.7]
[1761923868327,25.85382901,190.05,190.01,0.7]
[1761923868633,25.85382901,190.05,190.01,5.97984305]
[1761923868848,20.592,190.05,190.02,5.27984305]
[1761923869036,20.592,190.05,190.02,0.7]
[1761923869214,5.26069516,190.09,190.04,5.27984305]
[1761923869724,20.592,190.07,190.04,0.7]
[1761923870344,20.592,190.07,190.04,11.24188309]
[1761923870539,5.26044473,190.1,190.05,5.27984305]
[1761923870714,5.26044473,190.1,190.05,5.97984305]
[1761923870918,10.54028778,190.1,190.06,0.7]
[1761923872144,5.26044473,190.1,190.06,0.7]
[1761923872645,5.27984305,190.08,190.02,0.98432314]
[1761923872934,5.27984305,190.08,190.03,0.7]
[1761923874144,5.27984305,190.07,190.03,0.7]
[1761923874628,10.5409857,190.08,190.03,0.7]
[1761923874830,5.26114265,190.08,190.03,0.7]
[1761923875031,25.87184305,190.07,190.03,0.7]
[1761923875232,25.87184305,190.07,190.01,10.54269493]
[1761923875233,5.27984305,190.04,190.0,0.7]
[1761923875434,8.04031166,190.03,190.0,0.7]
[1761923875633,8.04031166,190.01,189.95,0.7]
[1761923875939,8.04031166,189.97,189.95,0.7]
[1761923876125,8.04031166,189.97,189.93,0.7]
[1761923876323,5.26371196,189.98,189.93,0.7]
[1761923876524,5.26348478,189.99,189.93,8.74031166]
[1761923876744,8.04031166,189.98,189.93,0.7]
[1761923876939,8.04031166,189.97,189.94,0.7]
[1761923877122,26.46238373,189.99,189.94,0.7]
[1761923877326,33.89551823,190.0,189.94,8.74031166]
[1761923877530,33.89551823,190.0,189.95,0.7]
[1761923877734,33.89551823,190.0,189.95,8.74031166]
[1761923877936,33.89551823,190.0,189.95,0.7]
[1761923878151,33.89551823,190.0,189.93,0.98432314]
[1761923878152,8.04031166,189.98,189.93,0.98432314]
[1761923878455,8.04031166,189.96,189.93,0.7]
[1761923878637,8.04031166,189.95,189.91,0.7]
[1761923878837,8.04031166,189.96,189.91,0.7]
[1761923879149,8.04031166,189.97,189.91,8.74031166]
[1761923879558,13.30430363,189.97,189.92,0.7]
[1761923879749,5.26399197,189.97,189.92,8.74031166]
[1761923880142,5.26399197,189.97,189.93,0.7]
[1761923880341,8.04031166,189.99,189.94,8.04031166]
[1761923880557,8.04031166,189.99,189.93,8.74031166]
[1761923881048,8.04031166,189.97,189.93,0.7]
[1761923881245,39.01311456,190.0,189.93,0.7]
[1761923881246,8.04031166,189.98,189.94,0.7]
[1761923881435,5.26398905,189.97,189.94,0.7]
[1761923881740,8.04031166,189.97,189.94,0.7]
[1761923882658,20.592,189.98,189.94,0.7]
[1761923882835,28.63231166,189.98,189.94,0.7]
[1761923883555,5.26398905,189.97,189.94,0.7]
[1761923883842,25.85573108,189.98,189.94,0.7]
[1761923884442,33.89604274,189.98,189.94,0.7]
[1761923884773,5.26149636,190.06,189.97,8.04031166]
[1761923884937,8.04031166,190.05,189.99,8.04031166]
[1761923885260,8.04031166,190.05,189.92,0.7]
[1761923885261,20.592,189.99,189.92,0.7]
[1761923885441,5.26426616,189.96,189.92,0.7]
[1761923885634,28.63231166,189.93,189.89,0.7]
[1761923886137,8.04031166,189.9,189.86,0.7]
[1761923886339,8.04031166,189.87,189.84,5.46749854]
[1761923886542,8.04031166,189.88,189.84,0.2]
[1761923886745,8.04031166,189.88,189.84,0.9]
[1761923886950,20.592,189.9,189.84,6.16758769]
[1761923887257,8.04031166,189.88,189.84,0.9]
[1761923887465,8.04031166,189.89,189.84,13.50786099]
[1761923887672,20.592,189.91,189.87,8.04031166]
[1761923887873,20.592,189.91,189.86,8.04031166]
[1761923888376,28.63231166,189.91,189.87,0.7]
[1761923889076,5.26385566,189.98,189.9,8.04031166]
[1761923889251,8.04031166,189.95,189.9,8.74031166]
[1761923889566,8.04031166,189.95,189.9,14.00610336]
[1761923889765,13.30494501,189.95,189.91,0.7]
[1761923889969,5.26398905,189.97,189.91,8.74031166]
[1761923890139,20.592,189.94,189.92,0.7]
[1761923890339,20.592,189.94,189.88,8.74031166]
[1761923890340,8.04031166,189.93,189.88,8.74031166]
[1761923890536,8.04031166,189.89,189.85,0.7]
[1761923890759,8.04031166,189.86,189.84,0.2]
[1761923890945,21.182,189.92,189.84,0.2]
[1761923890946,8.04031166,189.85,189.84,0.2]
[1761923891553,5.26648409,189.88,189.84,0.2]
[1761923891863,8.04031166,189.85,189.84,0.2]
[1761923893390,28.63231166,189.85,189.84,0.2]
[1761923893871,20.592,189.85,189.84,0.2]
[1761923894183,5.26593566,189.9,189.84,6.16752595]
[1761923894349,20.592,189.87,189.84,0.9]
[1761923894756,20.592,189.88,189.85,0.7]
[1761923894967,8.04031166,189.9,189.85,0.7]
[1761923895164,8.04031166,189.89,189.85,0.7]
[1761923895363,5.26509766,189.93,189.85,0.7]
[1761923895566,13.30638858,189.9,189.85,0.7]
[1761923896071,33.89838858,189.9,189.85,5.96727084]
[1761923896262,8.04031166,189.89,189.85,5.96727084]
[1761923896471,20.592,189.9,189.86,8.74031166]
[1761923896853,20.592,189.9,189.87,0.7]
[1761923897856,33.89826299,189.9,189.87,0.7]
[1761923898057,33.89826299,189.9,189.84,0.2]
[1761923898276,33.89826299,189.9,189.84,8.90031166]
[1761923898449,33.89826299,189.9,189.85,8.04031166]
[1761923898650,33.89826299,189.9,189.85,8.70031166]
[1761923898850,33.89826299,189.9,189.86,0.66]
[1761923899380,25.85795133,189.9,189.86,0.66]
[1761923899554,20.592,189.9,189.86,0.66]
[1761923899756,20.592,189.9,189.86,8.70031166]
[1761923900165,20.592,189.9,189.87,0.66]
[1761923900394,28.63231166,189.9,189.85,5.26731145]
[1761923900594,33.89825147,189.9,189.85,0.66]
[1761923901386,20.592,189.9,189.85,8.70031166]
[1761923901568,20.592,189.9,189.86,8.04031166]
[1761923901767,20.592,189.9,189.86,8.70031166]
[1761923901974,20.592,189.9,189.87,0.66]
[1761923902383,20.592,189.9,189.86,13.30733786]
[1761923902590,33.8982523,189.9,189.86,0.66]
[1761923902787,33.8982523,189.9,189.84,5.46753559]
[1761923902969,33.8982523,189.9,189.85,8.04031166]
[1761923903170,25.85794064,189.9,189.86,8.04031166]
[1761923903476,25.85794064,189.9,189.86,8.70031166]
[1761923903477,20.592,189.9,189.86,8.70031166]
[1761923903888,20.592,189.9,189.87,0.66]
[1761923904993,107.36504907,189.94,189.89,8.04031166]
[1761923905178,127.95704907,189.94,189.89,8.04031166]
[1761923905374,13.30486749,189.95,189.9,0.66]
[1761923905573,5.26455583,189.95,189.9,8.70031166]
[1761923905771,8.04031166,189.96,189.91,5.26565215]
[1761923906083,20.592,189.93,189.9,13.96621458]
[1761923906395,20.592,189.93,189.9,8.70031166]
[1761923906897,20.592,189.93,189.9,0.66]
[1761923907276,20.592,189.93,189.88,8.04031166]
[1761923907797,13.30606755,189.91,189.86,5.97697816]
[1761923907976,5.26575589,189.91,189.84,8.24031166]
[1761923908175,20.592,189.89,189.86,8.04031166]
[1761923908701,20.592,189.89,189.87,0.71]
[1761923908995,20.592,189.89,189.85,8.75031166]
[1761923909298,20.592,189.89,189.86,8.04031166]
[1761923909496,20.592,189.92,189.88,8.04031166]
[1761923909698,20.592,189.92,189.89,8.04031166]
[1761923909883,20.592,189.92,189.9,8.04031166]
[1761923910084,20.592,189.92,189.9,14.01614637]
[1761923910276,20.592,189.92,189.9,8.75031166]
[1761923910470,20.592,189.92,189.89,8.04031166]
[1761923910670,20.592,189.92,189.89,8.75031166]
[1761923911700,20.592,189.92,189.89,14.01638136]
[1761923912197,20.592,189.92,189.89,8.75031166]
[1761923912612,20.592,189.92,189.89,14.01635949]
[1761923912802,20.592,189.92,189.9,8.75031166]
[1761923913311,0.28432314,190.01,189.91,8.75031166]
[1761923913611,8.04031166,189.95,189.89,8.75031166]
[1761923914006,8.04031166,189.95,189.89,8.04031166]
[1761923914312,8.04031166,189.94,189.88,8.04031166]
[1761923914500,8.04031166,189.95,189.89,8.04031166]
[1761923914879,8.04031166,189.91,189.88,0.71]
[1761923915086,8.04031166,189.9,189.85,0.71]
[1761923915306,8.04031166,189.88,189.85,0.71]
[1761923915508,8.04031166,189.88,189.83,0.2]
[1761923915509,8.04031166,189.86,189.83,0.2]
[1761923915710,8.63031166,189.85,189.83,0.2]
[1761923915910,8.04031166,189.85,189.83,0.2]
[1761923916786,20.592,189.85,189.83,0.2]
[1761923917097,28.63231166,189.85,189.83,0.2]
[1761923917512,25.8593163,189.85,189.83,0.2]
[1761923917717,33.89962796,189.85,189.83,0.2]
[1761923918316,34.48962796,189.85,189.83,0.2]
[1761923919018,5.26706559,189.86,189.83,0.2]
[1761923919226,8.04031166,189.85,189.83,0.2]
[1761923919524,5.2673163,189.85,189.83,0.2]
[1761923919698,8.04031166,189.85,189.83,0.2]
[1761923920401,8.63031166,189.85,189.83,0.2]
[1761923921709,13.89762796,189.85,189.83,0.2]
[1761923922515,13.89762796,189.85,189.84,1e-08]
[1761923922516,23.97077879,189.85,189.84,1e-08]
[1761923922716,20.592,189.81,189.8,0.2]
[1761923923023,36.67262332,189.81,189.8,0.2]
[1761923923326,37.26262332,189.81,189.8,0.2]
[1761923923718,42.53104964,189.81,189.8,0.2]
[1761923924102,34.49073798,189.81,189.8,0.2]
[1761923924502,8.04031166,189.81,189.8,0.2]
[1761923924709,5.85764953,189.84,189.8,0.2]
[1761923925015,8.04031166,189.83,189.81,0.71]
[1761923925208,8.04031166,189.82,189.8,0.2]
[1761923925617,8.04031166,189.82,189.8,0.91]
[1761923926025,8.04031166,189.82,189.81,0.71]
[1761923926252,8.04031166,189.83,189.81,0.71]
[1761923926543,8.04031166,189.82,189.8,0.2]
[1761923926718,8.04031166,189.83,189.8,0.91]
[1761923927206,8.04031166,189.82,189.81,0.71]
[1761923927400,8.04031166,189.83,189.81,0.71]
[1761923927816,8.04031166,189.82,189.81,0.71]
[1761923929611,20.592,189.87,189.81,0.71]
[1761923929830,8.04031166,189.84,189.81,5.9784183]
[1761923930068,8.04031166,189.86,189.81,5.9784183]
[1761923930232,8.04031166,189.86,189.82,0.71]
[1761923930922,8.04031166,189.87,189.82,5.97793427]
[1761923931357,8.04031166,189.87,189.83,0.71]
[1761923931655,8.04031166,189.84,189.8,0.2]
[1761923931839,8.04031166,189.81,189.8,0.2]
[1761923932039,20.592,189.85,189.8,0.2]
[1761923932040,8.04031166,189.83,189.8,0.91]
[1761923932242,8.04031166,189.83,189.81,0.71]
[1761923932650,8.04031166,189.82,189.8,0.2]
[1761923933026,8.04031166,189.81,189.8,0.2]
[1761923933852,26.44930589,189.86,189.8,0.91]
[1761923934049,8.04031166,189.81,189.8,0.2]
[1761923934560,8.04031166,189.81,189.8,0.91]
[1761923935342,5.30332268,189.82,189.8,0.91]
[1761923935852,5.30332268,189.82,189.81,0.71]
[1761923937337,5.30332268,189.84,189.81,0.71]
[1761923937530,20.592,189.86,189.81,5.97841116]
[1761923937731,20.592,189.84,189.81,5.97841116]
[1761923937974,20.592,189.84,189.82,0.67]
[1761923938134,25.89532268,189.84,189.82,0.67]
[1761923939659,20.592,189.84,189.82,0.67]
[1761923939959,5.30332268,189.85,189.82,0.67]
[1761923940656,5.30332268,189.83,189.82,0.67]
[1761923941361,5.30332268,189.84,189.82,0.67]
[1761923941539,13.16548398,189.9,189.82,5.9381422]
[1761923941736,5.30332268,189.86,189.83,0.67]
[1761923941951,25.89532268,189.86,189.83,0.67]
[1761923942357,5.30332268,189.89,189.83,5.97332268]
[1761923942551,5.30332268,189.89,189.84,0.67]
[1761923943062,15.93414917,189.97,189.87,5.30332268]
[1761923943235,15.93414917,189.97,189.84,0.67]
[1761923943236,5.30332268,189.92,189.86,0.28432314]
[1761923943434,5.30332268,189.92,189.87,5.936516]
[1761923943635,5.30332268,189.9,189.87,5.93661701]
[1761923943852,5.30332268,189.91,189.88,0.67]
[1761923946350,20.592,189.93,189.88,5.93631477]
[1761923946664,38.64830754,189.98,189.88,5.93631477]
[1761923946665,5.30332268,189.95,189.89,5.30332268]
[1761923946969,5.30332268,189.95,189.89,5.97332268]
[1761923947138,5.30332268,189.95,189.9,5.97332268]
[1761923947345,20.592,189.95,189.9,0.67]
[1761923947540,20.592,189.95,189.91,0.67]
[1761923948160,25.89532268,189.96,189.91,0.67]
[1761923949092,5.26313771,190.01,189.93,5.30332268]
[1761923949376,5.26313771,190.01,189.91,0.67]
[1761923949377,0.1,190.04,189.98,5.30332268]
[1761923949568,10.66546285,190.04,189.98,10.5667705]
[1761923949741,10.66546285,190.04,189.99,0.67]
[1761923949943,0.1,190.04,189.99,5.97332268]
[1761923950149,0.1,190.04,189.99,0.67]
[1761923950150,5.40332268,190.04,189.99,0.67]
[1761923950349,5.30332268,190.03,190.0,0.67]
[1761923950558,5.36208692,190.04,189.96,0.67]
[1761923950871,5.30332268,189.99,189.97,0.67]
[1761923951070,5.30332268,190.0,189.97,0.67]
[1761923951767,10.56660727,190.0,189.97,0.67]
[1761923951959,5.30332268,189.98,189.94,0.67]
[1761923952153,5.30332268,189.97,189.94,0.67]
[1761923952873,20.592,190.01,189.94,0.67]
[1761923952874,5.30332268,189.99,189.94,0.67]
[1761923953070,5.30332268,189.98,189.94,0.67]
[1761923953973,5.30332268,189.99,189.94,5.93480849]
[1761923954155,5.30332268,190.0,189.94,11.23813117]
[1761923954360,5.30332268,190.01,189.95,5.97332268]
[1761923954662,5.26234744,190.03,189.98,5.30332268]
[1761923954848,5.30332268,190.01,189.98,0.67]
[1761923955053,5.26234744,190.03,189.98,0.67]
[1761923955264,5.30332268,190.01,189.98,0.67]
[1761923956350,10.56597739,190.02,189.98,0.67]
[1761923956565,10.66561849,190.04,189.98,5.97332268]
[1761923956964,10.66561849,190.04,189.99,0.67]
[1761923957169,5.40332268,190.04,189.99,5.97332268]
[1761923957369,10.66542239,190.04,190.0,0.67]
[1761923958469,5.30332268,190.03,190.0,0.67]
[1761923958768,5.36209971,190.04,190.0,0.67]
[1761923958987,5.30332268,190.03,190.0,0.67]
[1761923959479,5.40332268,190.04,190.0,0.67]
[1761923959697,0.1,190.04,190.0,11.23643034]
[1761923960183,0.1,190.04,190.02,5.26260393]
[1761923960565,0.1,190.04,190.03,0.7]
[1761923961377,5.30332268,190.14,190.05,0.28432314]
[1761923961578,5.30332268,190.13,190.07,5.30332268]
[1761923961960,5.30332268,190.13,190.08,0.7]
[1761923962178,10.56312886,190.13,190.08,0.7]
[1761923962462,5.30332268,190.12,190.08,0.7]
[1761923962678,5.30332268,190.11,190.06,5.96146638]
[1761923962884,5.30332268,190.11,190.07,0.7]
[1761923964186,10.56343539,190.11,190.07,0.7]
[1761923964489,5.30332268,190.12,190.07,0.7]
[1761923964695,5.30332268,190.13,190.08,5.30332268]
[1761923965076,5.30332268,190.13,190.09,0.7]
[1761923965986,5.30332268,190.12,190.06,6.00332268]
[1761923966358,5.26011256,190.11,190.07,0.7]
[1761923966569,10.56343524,190.11,190.07,0.7]
[1761923967087,5.26011256,190.11,190.07,0.7]
[1761923967699,10.5631555,190.13,190.08,5.30332268]
[1761923967900,5.25983282,190.13,190.08,5.30332268]
[1761923968095,5.25983282,190.13,190.09,0.67]
[1761923968273,10.5631555,190.13,190.09,0.67]
[1761923968878,20.592,190.15,190.09,5.93060518]
[1761923969094,20.592,190.15,190.09,11.23392786]
[1761923969400,5.30332268,190.1,190.05,0.67]
[1761923969571,5.30332268,190.1,190.06,0.67]
[1761923969771,5.30332268,190.11,190.06,0.67]
[1761923969984,25.89532268,190.12,190.06,5.97332268]
[1761923970197,18.40653264,190.15,190.06,0.67]
[1761923970373,10.56288192,190.13,190.07,0.67]
[1761923970585,5.30332268,190.12,190.07,0.67]
[1761923970888,5.25955924,190.13,190.07,5.97332268]
[1761923971198,5.30332268,190.12,190.07,5.97332268]
[1761923971382,2.30686585,190.12,190.07,2.30686585]
[1761923971579,2.30686585,190.12,190.08,0.67]
[1761923971787,7.56674538,190.12,190.08,0.67]
[1761923972585,5.25987953,190.12,190.08,0.67]
[1761923972914,7.56674538,190.12,190.08,0.67]
[1761923974005,0.1,190.16,190.05,0.67]
[1761923974181,0.1,190.16,190.02,9.78882769]
[1761923974182,2.30686585,190.11,190.04,9.78882769]
[1761923974508,2.30686585,190.12,190.05,0.28432314]
[1761923974679,2.30686585,190.12,190.05,0.95432314]
[1761923974881,2.30686585,190.13,190.05,0.95432314]
[1761923975091,2.30686585,190.13,190.06,0.67]
[1761923975376,5.25983589,190.12,190.07,5.26121955]
[1761923975805,5.25983589,190.12,190.08,0.67]
[1761923976187,7.56670174,190.12,190.08,0.67]
[1761923976582,5.25983589,190.12,190.08,0.67]
[1761923976811,7.56670174,190.12,190.08,0.67]
[1761923978303,5.25983589,190.12,190.08,0.67]
[1761923978822,7.56649178,190.13,190.08,5.93087644]
[1761923979013,0.1,190.16,190.1,2.30686585]
[1761923979222,2.30686585,190.12,190.06,0.67]
[1761923979412,5.26006616,190.12,190.06,0.95432314]
[1761923979721,2.30686585,190.1,190.06,0.67]
[1761923980217,5.95006616,190.12,190.06,0.67]
[1761923980218,18.40965589,190.12,190.06,0.67]
[1761923980420,7.56693201,190.12,190.06,5.93146623]
[1761923980626,2.30686585,190.12,190.07,0.67]
[1761923980813,0.1,190.16,190.07,0.67]
[1761923981123,0.1,190.16,190.11,2.30686585]
[1761923981315,2.30686585,190.14,190.09,0.28432314]
[1761923981511,2.30686585,190.14,190.09,6.21492355]
[1761923981820,20.692,190.16,190.09,0.95432314]
[1761923982124,2.30686585,190.15,190.1,0.67]
[1761923982319,0.1,190.16,190.11,2.30686585]
[1761923982698,0.1,190.16,190.12,0.67]
[1761923983322,7.66583075,190.16,190.1,2.30686585]
[1761923983623,5.3589649,190.16,190.09,5.54482696]
[1761923983831,7.6656068,190.16,190.11,0.67]
[1761923984211,2.40686585,190.16,190.11,0.67]
[1761923984530,2.30686585,190.12,190.08,0.67]
[1761923985030,2.30686585,190.1,190.08,0.67]
[1761923985207,2.30686585,190.12,190.08,0.67]
[1761923986736,7.56682808,190.12,190.08,0.67]
[1761923986897,5.25996223,190.12,190.08,0.67]
[1761923987097,2.30686585,190.11,190.08,0.67]
[1761923987698,2.30686585,190.11,190.08,5.93094266]
[1761923988103,5.25960951,190.13,190.08,5.26094266]
[1761923988309,2.30686585,190.15,190.09,0.95432314]
[1761923988509,2.30686585,190.15,190.1,5.26038926]
[1761923988705,7.5659028,190.15,190.1,5.93038926]
[1761923989006,7.5659028,190.15,190.11,0.67]
[1761923989510,7.5659028,190.15,190.07,0.67]
[1761923989511,2.30686585,190.13,190.07,0.67]
[1761923989809,0.69,190.14,190.04,9.60943642]
[1761923989810,2.30686585,190.08,190.04,9.60943642]
[1761923990018,2.30686585,190.05,190.04,9.60943642]
[1761923990422,8.25863906,190.05,190.04,9.60943642]
[1761923990914,13.15257015,190.08,190.04,9.60943642]
[1761923990915,5.26154871,190.06,190.04,9.60943642]
[1761923991215,22.89886585,190.05,190.04,9.60943642]
[1761923991530,25.88325039,190.05,190.04,9.60943642]
[1761923991737,26.57325039,190.05,190.04,9.60943642]
[1761923992112,25.88325039,190.05,190.04,9.60943642]
[1761923992343,5.29125039,190.05,190.04,9.60943642]
[1761923992711,5.29125039,190.08,190.04,10.27943642]
[1761923992916,5.29125039,190.1,190.05,0.67]
[1761923993208,25.88325039,190.1,190.05,0.67]
[1761923993620,20.592,190.1,190.05,0.67]
[1761923993850,5.29125039,190.09,190.05,0.67]
[1761923994027,5.29125039,190.08,190.04,9.60943642]
[1761923994230,5.29125039,190.07,190.04,9.60943642]
[1761923994430,5.29125039,190.06,190.04,9.60943642]
[1761923994738,10.55275905,190.06,190.04,9.60943642]
[1761923994912,5.29125039,190.05,190.04,9.60943642]
[1761923995112,5.29125039,190.06,190.04,10.27943642]
[1761923995639,5.29125039,190.06,190.04,9.60943642]
[1761923995813,5.29125039,190.06,190.05,0.67]
[1761923996011,26.54198633,190.12,190.05,0.67]
[1761923996318,5.29125039,190.07,190.04,14.87147483]
[1761923996517,5.29125039,190.07,190.04,15.54147483]
[1761923996731,5.29125039,190.07,190.05,0.67]
[1761923997232,5.25980561,190.13,190.05,5.93176348]
[1761923997436,20.592,190.1,190.05,5.93176348]
[1761923997622,20.592,190.1,190.06,0.66]
[1761923997831,8.03496463,190.08,190.04,9.60943642]
[1761923998141,8.03496463,190.08,190.05,0.66]
[1761923998623,20.592,190.1,190.05,0.66]
[1761923998819,8.03496463,190.09,190.05,0.66]
[1761923999043,8.03496463,190.07,190.04,9.60943642]
[1761923999535,8.03496463,190.05,190.04,9.60943642]
[1761923999738,39.00359342,190.1,190.04,10.26943642]
[1761924000051,8.03496463,190.08,190.04,10.26943642]
[1761924000551,8.03496463,190.09,190.05,0.66]
[1761924000765,0.69,190.13,190.05,0.66]
[1761924001043,8.03496463,190.1,190.05,5.92152934]
[1761924001247,8.03496463,190.1,190.05,0.66]
[1761924001428,8.03496463,190.1,190.06,0.66]
[1761924001630,20.592,190.12,190.06,8.69496463]
[1761924001631,33.88686619,190.12,190.06,8.69496463]
[1761924002134,33.88686619,190.12,190.07,0.66]
[1761924002448,0.1,190.16,190.09,8.03496463]
[1761924002619,0.1,190.16,190.11,8.03496463]
[1761924002823,0.1,190.16,190.14,5.25928263]
[1761924003035,0.1,190.16,190.15,8.69496463]
[1761924004047,0.1,190.16,190.11,0.66]
[1761924004231,0.1,190.16,190.12,0.66]
[1761924004440,0.1,190.16,190.12,8.69496463]
[1761924005050,0.1,190.16,190.13,13.95435797]
[1761924005357,0.1,190.16,190.13,8.69496463]
[1761924005652,0.1,190.16,190.11,13.57934525]
[1761924005951,8.03496463,190.12,190.06,8.69496463]
[1761924006328,8.03496463,190.11,190.07,0.66]
[1761924006728,8.03496463,190.1,190.07,0.66]
[1761924007022,8.03496463,190.11,190.07,0.66]
[1761924007222,20.592,190.14,190.07,5.92119983]
[1761924007451,8.03496463,190.15,190.09,8.03496463]
[1761924007648,8.03496463,190.14,190.08,8.69496463]
[1761924007954,26.64084451,190.16,190.08,8.69496463]
[1761924007955,0.1,190.16,190.11,50.0]
[1761924008252,0.1,190.16,190.15,18.10811546]
[1761924008554,0.1,190.16,190.15,18.76811546]
[1761924008866,0.1,190.16,190.15,24.0271215]
[1761924009424,0.1,190.16,190.15,5.91900604]
[1761924009637,0.1,190.16,190.13,8.03496463]
[1761924009856,0.1,190.16,190.1,0.28432314]
[1761924009857,8.03496463,190.15,190.1,0.28432314]
[1761924010074,0.1,190.16,190.11,0.66]
[1761924010358,0.1,190.16,190.11,8.69496463]
[1761924010536,8.13496463,190.16,190.11,0.66]
[1761924010927,8.13496463,190.16,190.12,5.25983589]
[1761924011154,0.1,190.16,190.13,8.03496463]
[1761924012057,0.1,190.16,190.13,8.69496463]
[1761924012550,5.35878266,190.16,190.13,8.69496463]
[1761924012757,5.35878266,190.16,190.13,8.03496463]
[1761924013148,0.1,190.16,190.13,8.03496463]
[1761924013949,0.1,190.16,190.15,8.03496463]
[1761924014544,6.04876617,190.16,190.1,0.28432314]
[1761924014745,6.04876617,190.16,190.11,8.03496463]
[1761924014938,0.69,190.15,190.09,8.03496463]
[1761924016062,5.25928263,190.14,190.1,8.03496463]
[1761924016262,0.69,190.15,190.1,8.03496463]
[1761924016647,19.09653583,190.15,190.05,5.26160318]
[1761924016957,20.592,190.11,190.04,9.60943642]
[1761924017159,20.592,190.11,190.05,8.03496463]
[1761924017736,20.592,190.11,190.07,8.03496463]
[1761924017933,5.260666,190.09,190.04,17.64440105]
[1761924018164,5.95039323,190.1,190.04,22.90642982]
[1761924018352,0.69,190.1,190.04,17.64440105]
[1761924018540,5.95048308,190.1,190.04,17.64440105]
[1761924018740,5.95048308,190.1,190.04,9.60943642]
[1761924018741,19.10145625,190.1,190.04,9.60943642]
[1761924019064,20.592,190.06,190.04,9.60943642]
[1761924019369,21.282,190.06,190.04,9.60943642]
[1761924019664,21.282,190.05,190.04,9.60943642]
[1761924020138,26.54377321,190.05,190.04,9.60943642]
[1761924021252,5.26151729,190.06,190.04,9.60943642]
[1761924021454,20.592,190.06,190.04,9.60943642]
[1761924022151,5.950666,190.09,190.05,8.03496463]
[1761924022469,5.26052717,190.1,190.07,8.03496463]
[1761924022649,20.592,190.09,190.07,8.03496463]
[1761924023671,5.94985164,190.12,190.07,8.03496463]
[1761924023851,26.54185164,190.12,190.07,8.03496463]
[1761924024053,25.85185164,190.12,190.07,8.03496463]
[1761924024256,0.67,190.11,190.07,8.03496463]
[1761924024644,0.67,190.11,190.04,14.87137445]
[1761924024645,0.67,190.11,190.05,8.03496463]
[1761924025053,20.592,190.09,190.04,9.60943642]
[1761924025254,0.67,190.11,190.04,9.60943642]
[1761924025255,20.592,190.07,190.04,9.60943642]
[1761924025570,20.592,190.06,190.04,9.60943642]
[1761924025866,20.592,190.05,190.04,9.60943642]
[1761924026366,25.85370204,190.06,190.04,9.60943642]
[1761924026849,5.26048979,190.1,190.05,0.66]
[1761924027042,25.85248979,190.1,190.06,8.03496463]
[1761924028282,20.592,190.1,190.08,8.03496463]
[1761924028451,25.85240605,190.1,190.08,8.03496463]
[1761924028658,0.66,190.09,190.05,8.03496463]
[1761924028857,20.592,190.09,190.05,8.03496463]
[1761924029157,20.592,190.09,190.06,0.71]
[1761924029461,20.592,190.09,190.05,8.03496463]
[1761924030378,25.85266726,190.09,190.06,8.03496463]
[1761924030581,20.592,190.09,190.06,8.03496463]
[1761924031963,25.85282765,190.09,190.06,8.03496463]
[1761924032462,20.592,190.09,190.06,8.03496463]
[1761924032662,25.85272286,190.09,190.06,8.03496463]
[1761924033759,5.92028652,190.11,190.06,8.03496463]
[1761924034272,20.592,190.08,190.04,9.60943642]
[1761924034475,5.26121955,190.07,190.04,9.60943642]
[1761924034788,25.85281599,190.09,190.04,9.60943642]
[1761924034970,0.66,190.07,190.04,9.60943642]
[1761924035960,20.592,190.05,190.04,9.60943642]
[1761924036155,28.62696463,190.05,190.04,9.60943642]
[1761924036373,34.54873784,190.05,190.04,9.60943642]
[1761924036558,38.80111608,190.05,190.04,9.60943642]
[1761924036756,34.54873784,190.05,190.04,9.60943642]